fUSD/lending_fUSD_20241121
["ID","MTS","AMOUNT","RATE_DAILY","PERIOD"]
[342886999,1732193483384,-500.0,0.00041917,18]
[342887000,1732193483397,-1128.94,0.00041917,18]
[342887001,1732193483406,-500.0,0.00041917,18]
[342887002,1732193483416,-500.0,0.00041917,18]
[342887003,1732193483425,-2507.83,0.00041917,18]
[342887004,1732193483435,-500.0,0.00041917,18]
[342887005,1732193483444,-500.0,0.00041917,18]
[342887006,1732193483454,-939.08,0.00041917,18]
[342887007,1732193483464,-500.0,0.00041917,18]
[342887008,1732193483473,-500.0,0.00041917,18]
[342887009,1732193483483,-500.0,0.00041917,18]
[342887010,1732193483492,-561.7,0.00041917,18]
[342887011,1732193483501,-543.62,0.00041917,18]
[342887012,1732193483510,-500.0,0.00041917,18]
[342887013,1732193483519,-911.24,0.00041917,18]
[342887014,1732193483528,-500.0,0.00041917,18]
[342887015,1732193483537,-1228.07,0.00041917,18]
[342887016,1732193483546,-853.45,0.00041917,18]
[342887017,1732193483554,-500.0,0.00041917,18]
[342887018,1732193483563,-999.81,0.00041917,18]
[342887019,1732193483572,-650.91,0.00041917,18]
[342887020,1732193483582,-1093.33,0.00041917,18]
[342887021,1732193483591,-500.0,0.00041917,18]
[342887022,1732193483600,-590.22,0.00041917,18]
[342887023,1732193483609,-274.39591566,0.00041917,18]
[342887024,1732193484273,-153.0,0.00041296,31]
[342887025,1732193484285,-598.04408434,0.00041917,18]
[342887026,1732193484295,-1958.51,0.00041917,18]
[342887027,1732193484304,-2050.87,0.00041917,18]
[342887028,1732193484313,-500.0,0.00041917,18]
[342887029,1732193484322,-2587.86,0.00041917,18]
[342887030,1732193484332,-716.66,0.00041917,18]
[342887031,1732193484341,-500.0,0.00041917,18]
[342887032,1732193484350,-500.0,0.00041917,18]
[342887033,1732193484359,-1854.83,0.00041917,18]
[342887034,1732193484368,-500.0,0.00041917,18]
[342887035,1732193484377,-1245.1,0.00041917,18]
[342887036,1732193484385,-2182.56,0.00041917,18]
[342887037,1732193484396,-500.0,0.00041917,18]
[342887038,1732193484406,-721.06,0.00041917,18]
[342887039,1732193484415,-500.0,0.00041917,18]
[342887040,1732193484424,-500.0,0.00041917,18]
[342887041,1732193484433,-681.05,0.00041917,18]
[342887042,1732193484443,-811.96,0.00041917,18]
[342887043,1732193484453,-468.70742591,0.00041917,18]
[342887044,1732193484464,-775.47633904,0.00041917,18]
[342887045,1732193484476,-404.38623505,0.00041917,18]
[342887046,1732193484485,-120.5981909,0.00041917,18]
[342887047,1732193484496,-977.045,0.00041917,18]
[342887048,1732193484507,-927.3268091,0.00041917,18]
[342887049,1732193484515,-186.38289717,0.00041917,18]
[342887050,1732193484527,-2921.92710283,0.00041917,18]
[342887051,1732193484536,-869.48,0.00041917,18]
[342887052,1732193484544,-500.0,0.00041917,18]
[342887053,1732193484554,-500.0,0.00041917,18]
[342887054,1732193484563,-500.0,0.00041917,18]
[342887055,1732193484573,-395.97204976,0.00041917,18]
[342887056,1732193484584,-1731.18795024,0.00041917,18]
[342887057,1732193484593,-500.0,0.00041917,18]
[342887058,1732193484602,-500.0,0.00041917,18]
[342887059,1732193484612,-808.84,0.00041917,18]
[342887060,1732193484621,-627.77,0.00041917,18]
[342887061,1732193484630,-2208.64,0.00041917,18]
[342887062,1732193484642,-500.0,0.00041917,18]
[342887063,1732193484652,-500.0,0.00041917,18]
[342887064,1732193484661,-912.21,0.00041917,18]
[342887065,1732193484670,-657.58,0.00041917,18]
[342887066,1732193484679,-151.0,0.00041917,14]
[342887067,1732193484688,-500.0,0.00041917,18]
[342887068,1732193484697,-955.78,0.00041917,18]
[342887069,1732193484839,-546.87,0.00041917,18]
[342887070,1732193484848,-700.0,0.00041917,18]
[342887071,1732193484858,-500.0,0.00041917,18]
[342887072,1732193484867,-500.0,0.00041917,18]
[342887073,1732193484876,-500.0,0.00041917,18]
[342887074,1732193484885,-1174.63,0.00041917,18]
[342887075,1732193484897,-500.0,0.00041917,18]
[342887076,1732193484906,-2130.31,0.00041917,18]
[342887077,1732193484915,-1955.17954976,0.00041917,18]
[342887082,1732194066783,157.23,0.00015342,2]
[342887083,1732194351188,-500.0,0.00024932,2]
[342887084,1732194351212,-500.0,0.00024932,2]
[342887085,1732194351235,-331.22688846,0.00024932,2]
[342887086,1732194436095,-168.77311154,0.00024932,2]
[342887087,1732194436122,-800.0,0.00026986,120]
[342887088,1732194436142,-273.27146414,0.000274,2]
[342887089,1732194436161,-151.0,0.0003,120]
[342887090,1732194436181,-155.7,0.00030272,2]
[342887091,1732194436202,-157.23,0.00030548,2]
[342887092,1732194436221,-166.02,0.00030616,2]
[342887093,1732194436243,-365.26009592,0.000309,2]
[342887094,1732194436263,-250.0,0.00031,2]
[342887095,1732194436284,-606.25450101,0.000315,30]
[342887096,1732194436304,-365.26009591,0.000329,2]
[342887097,1732194436324,-300.0,0.00033,2]
[342887098,1732194436344,-633.38,0.00033,2]
[342887099,1732194436371,-5617.49,0.00033,2]
[342887100,1732194436392,-738.2,0.00033,2]
[342887101,1732194436412,-661.46610465,0.00033756,113]
[342887102,1732194439094,-138.53389535,0.00033756,113]
[342887103,1732194439118,-1198.53850762,0.00033756,113]
[342887104,1732194449113,-172.05797662,0.00033756,113]
[342887105,1732194449136,-350.0,0.00035,2]
[342887106,1732194449158,-600.0,0.000353,120]
[342887107,1732194449180,-1320.4,0.00036154,2]
[342887108,1732194449201,-400.0,0.00037,2]
[342887109,1732194449222,-555.42340612,0.000371,5]
[342887113,1732194552108,-361.89617863,0.00035177,2]
[342887114,1732194552131,-243.37934292,0.00035177,2]
[342887115,1732194552162,-153.19947274,0.000368,5]
[342887146,1732194631767,-1112.23099322,0.00035277,120]
[342887148,1732194631776,-276.27044531,0.00035277,120]
[342887149,1732194631785,-372.22911655,0.00035277,2]
[342887150,1732194631794,-190.0,0.00035277,30]
[342887151,1732194631805,-5833.0,0.000365,5]
[342887152,1732194631815,-243.37934291,0.00036835,2]
[342887153,1732194631824,-500.0,0.000373,15]
[342887154,1732194631834,-400.0,0.00037695,2]
[342887155,1732194631844,-571.51,0.00037696,2]
[342887156,1732194631856,-5178.56,0.00037828,2]
[342887157,1732194631866,-156.64,0.00037828,2]
[342887158,1732194631875,-251.14,0.00037855,120]
[342887159,1732194631884,-1000.0,0.00037941,2]
[342887160,1732194631893,-1672.68,0.00037976,2]
[342887161,1732194631902,-1112.23099322,0.00038,120]
[342887162,1732194631911,-276.27044531,0.00038,120]
[342887163,1732194631920,-890.46,0.00038072,2]
[342887164,1732194631930,-250.0,0.00038121,2]
[342887165,1732194631939,-150.25,0.0003813,2]
[342887166,1732194631948,-150.0,0.00038173,2]
[342887167,1732194631957,-692.0,0.00038247,2]
[342887168,1732194631966,-3514.0,0.00038248,2]
[342887169,1732194631976,-166.02,0.0003827,2]
[342887170,1732194631985,-243.59,0.00038306,2]
[342887171,1732194631994,-1396.49,0.00038318,2]
[342887172,1732194632004,-2222.92,0.00038343,2]
[342887173,1732194632013,-154.7,0.00038351,2]
[342887174,1732194632023,-1320.4,0.00038418,2]
[342887175,1732194632032,-250.0,0.00038449,2]
[342887176,1732194632041,-23900.0,0.00038459,2]
[342887177,1732194632050,-250.0,0.00038481,2]
[342887178,1732194632060,-243.37934291,0.00038493,2]
[342887179,1732194632070,-277.9,0.00038516,120]
[342887180,1732194632079,-200.0,0.0003852,2]
[342887181,1732194632089,-165.14,0.00038533,2]
[342887182,1732194632098,-7129.89,0.00038537,2]
[342887183,1732194632111,-500.0,0.00038545,2]
[342887184,1732194632120,-5604.84,0.00038569,2]
[342887185,1732194632131,-200.0,0.00038593,2]
[342887186,1732194632140,-861.5,0.0003861,2]
[342887187,1732194632151,-1720.78,0.0003861,2]
[342887188,1732194632160,-250.0,0.00038627,120]
[342887189,1732194632169,-158.64,0.00038699,120]
[342887190,1732194632178,-185.29,0.00038981,2]
[342887192,1732194632187,-601.42,0.00038992,2]
[342887194,1732194632197,-450.0,0.00039,2]
[342887196,1732194632206,-601.42,0.00039003,2]
[342887197,1732194632215,-601.42,0.00039013,2]
[342887198,1732194632225,-24215.22287889,0.00039013,2]
[342887199,1732194632234,-601.42,0.00039023,2]
[342887201,1732194632243,-601.42,0.00039033,2]
[342887203,1732194632252,-601.42,0.00039044,2]
[342887205,1732194632262,-601.42,0.00039054,2]
[342887207,1732194632271,-601.42,0.00039064,2]
[342887209,1732194632280,-601.42,0.00039074,2]
[342887210,1732194632289,-601.42,0.00039085,2]
[342887212,1732194632299,-1631.917,0.00039085,53]
[342887214,1732194632308,-601.42,0.00039095,2]
[342887216,1732194632318,-601.42,0.00039105,2]
[342887218,1732194632327,-601.42,0.00039116,2]
[342887220,1732194632337,-601.42,0.00039126,2]
[342887222,1732194632347,-601.42,0.00039136,2]
[342887223,1732194632361,-601.42,0.00039146,2]
[342887224,1732194632371,-601.42,0.00039157,2]
[342887225,1732194632380,-168.23,0.00039159,2]
[342887226,1732194632390,-601.42,0.00039167,2]
[342887227,1732194632402,-601.42,0.00039177,2]
[342887228,1732194632413,-601.42,0.00039187,2]
[342887229,1732194632423,-1000.0,0.00039227,2]
[342887230,1732194632432,-1000.0,0.00039345,2]
[342887231,1732194632443,-192.586,0.0003946,60]
[342887232,1732194632452,-5178.56,0.0003972,2]
[342887233,1732194632461,-800.0,0.00039855,120]
[342887234,1732194632471,-1112.23099322,0.0004,120]
[342887235,1732194632481,-276.27044531,0.0004,120]
[342887236,1732194632492,-4604.6,0.0004,120]
[342887237,1732194632501,-1770.14,0.0004,120]
[342887238,1732194632511,-2632.72308004,0.00040028,15]
[342887239,1732194632520,-800.0,0.00040128,120]
[342887240,1732194632530,-433.33,0.00040137,2]
[342887241,1732194632540,-2003.716,0.000403,2]
[342887242,1732194632549,-10703.23752421,0.00040323,15]
[342887243,1732194632559,-1528.82,0.00040324,2]
[342887244,1732194632568,-764.41,0.00040324,2]
[342887245,1732194632578,-4192.0,0.000404,3]
[342887246,1732194632588,-764.41,0.00040411,2]
[342887247,1732194632597,-1919.081191,0.00040414,2]
[342887248,1732194632625,-3777.893809,0.00040414,2]
[342887249,1732194632635,-247.051,0.00040414,2]
[342887250,1732194632645,-1162.0,0.00040414,2]
[342887251,1732194632656,-13657.0,0.00040414,2]
[342887252,1732194632666,-150.0,0.00040423,2]
[342887253,1732194632676,-150.0,0.00040471,2]
[342887254,1732194632686,-329.455191,0.00040531,15]
[342887255,1732194632720,-1947.66,0.00040531,15]
[342887256,1732194632732,-355.607889,0.00040531,15]
[342887257,1732194632741,-215.90579221,0.000406,14]
[342887258,1732194632753,-1784.09420779,0.000406,14]
[342887259,1732194632762,-150.0,0.00040635,2]
[342887260,1732194632772,-150.0,0.00040638,2]
[342887261,1732194632781,-1000.0,0.00040656,2]
[342887262,1732194632791,-4604.6,0.00040657,120]
[342887263,1732194632800,-1770.14,0.00040657,120]
[342887264,1732194632809,-150.0,0.00040679,2]
[342887265,1732194632818,-1119.30579221,0.00040682,2]
[342887266,1732194632830,-201.09420779,0.00040682,2]
[342887267,1732194632840,-433.33,0.00040685,2]
[342887268,1732194632849,-38.61256081,0.000407,14]
[342887269,1732194632867,-4061.38743919,0.000407,14]
[342887270,1732194632876,-369.71256031,0.0004074,120]
[342887271,1732194632899,-430.28743969,0.0004074,120]
[342887272,1732194632908,-150.0,0.00040747,2]
[342887273,1732194632917,-1000.0,0.00040749,2]
[342887274,1732194632927,-164.22,0.0004077,120]
[342887275,1732194632936,-601.41,0.0004077,120]
[342887276,1732194632946,-4496.20500049,0.00040793,15]
[342887277,1732194632957,-6207.03252365,0.00040793,15]
[342887278,1732194632966,-11905.1152,0.000408,2]
[342887279,1732194632976,-6100.0,0.000408,14]
[342887280,1732194632985,-150.0,0.00040809,2]
[342887281,1732194632994,-1080.74939201,0.0004081,5]
[342887282,1732194633003,-150.0,0.00040878,2]
[342887283,1732194633013,-4500.0,0.00040882,3]
[342887284,1732194633022,-167.49,0.0004089,2]
[342887285,1732194633033,-150.0,0.0004089,2]
[342887286,1732194633042,-2500.0,0.000409,2]
[342887287,1732194633052,-150.0,0.000409,2]
[342887288,1732194633062,-8200.0,0.000409,14]
[342887289,1732194633071,-480.72648638,0.000409,13]
[342887290,1732194633081,-437.70500234,0.000409,2]
[342887291,1732194633091,-235.4497788,0.000409,28]
[342887292,1732194633101,-150.0,0.00040904,2]
[342887293,1732194633116,-150.0,0.00040986,2]
[342887294,1732194633125,-2237.16830001,0.00040998,45]
[342887295,1732194633135,-50000.0,0.00041,11]
[342887296,1732194633144,-50000.0,0.00041,21]
[342887297,1732194633154,-50000.0,0.00041,31]
[342887298,1732194633164,-239.73588467,0.00041,30]
[342887299,1732194633174,-450000.0,0.00041,2]
[342887300,1732194633183,-410.21931014,0.00041,2]
[342887301,1732194633193,-294.7219851,0.00041,21]
[342887302,1732194633203,-299.99999,0.00041,3]
[342887303,1732194633212,-5000.0,0.00041,120]
[342887304,1732194633222,-2217.0,0.00041,120]
[342887305,1732194633232,-500.0,0.00041,2]
[342887306,1732194633241,-151.0,0.00041,120]
[342887307,1732194633250,-176.0,0.00041,14]
[342887308,1732194633259,-150.0,0.00041024,2]
[342887309,1732194633269,-2632.72308,0.00041034,15]
[342887310,1732194633279,-150.0,0.00041073,2]
[342887311,1732194633289,-1015.33830401,0.00041079,5]
[342887312,1732194633298,-1130.51689406,0.00041079,5]
[342887313,1732194633307,-500.0,0.00041095,18]
[342887314,1732194633317,-427.37935443,0.00041095,18]
[342887315,1732194633326,-500.0,0.00041095,18]
[342887316,1732194633336,-500.0,0.00041095,18]
[342887317,1732194633345,-500.0,0.00041095,18]
[342887318,1732194633355,-500.0,0.00041095,18]
[342887319,1732194633374,-500.0,0.00041095,18]
[342887320,1732194633384,-500.0,0.00041095,18]
[342887321,1732194633393,-500.0,0.00041095,18]
[342887322,1732194633404,-820.99,0.00041095,18]
[342887323,1732194633415,-500.0,0.00041095,18]
[342887324,1732194633431,-551.11,0.00041095,18]
[342887325,1732194633440,-500.0,0.00041095,18]
[342887326,1732194633450,-500.0,0.00041095,18]
[342887327,1732194633461,-500.0,0.00041095,18]
[342887328,1732194633470,-500.0,0.00041095,18]
[342887329,1732194633480,-500.0,0.00041095,18]
[342887330,1732194633489,-500.0,0.00041095,18]
[342887331,1732194633501,-500.0,0.00041095,18]
[342887332,1732194633512,-492.89508194,0.00041095,18]
[342887333,1732194633522,-1073.8,0.00041095,18]
[342887334,1732194633532,-500.0,0.00041095,18]
[342887335,1732194633541,-532.73,0.00041095,18]
[342887336,1732194633551,-170.542089,0.00041095,18]
[342887337,1732194633561,-154.589909,0.00041095,18]
[342887338,1732194633570,-1022.643842,0.00041095,18]
[342887339,1732194633579,-500.0,0.00041095,18]
[342887340,1732194633590,-500.0,0.00041095,18]
[342887341,1732194633599,-500.0,0.00041095,18]
[342887342,1732194633608,-500.0,0.00041095,18]
[342887343,1732194633618,-282.91481329,0.00041095,18]
[342887344,1732194633628,-546.84,0.00041095,18]
[342887345,1732194633638,-720.41,0.00041095,18]
[342887346,1732194633647,-500.0,0.00041095,18]
[342887347,1732194633657,-500.0,0.00041095,18]
[342887348,1732194633666,-500.0,0.00041095,18]
[342887349,1732194633675,-500.0,0.00041095,18]
[342887350,1732194633685,-500.0,0.00041095,18]
[342887351,1732194633694,-573.75,0.00041095,18]
[342887352,1732194633704,-494.84326508,0.00041095,18]
[342887353,1732194633714,-500.0,0.00041095,18]
[342887354,1732194633724,-592.72,0.00041095,18]
[342887355,1732194633733,-521.8,0.00041095,18]
[342887356,1732194633743,-500.0,0.00041095,18]
[342887357,1732194633752,-500.0,0.00041095,18]
[342887358,1732194633762,-570.14,0.00041095,18]
[342887359,1732194633771,-500.0,0.00041095,18]
[342887360,1732194633781,-636.87,0.00041095,18]
[342887361,1732194633791,-885.53,0.00041095,18]
[342887362,1732194633800,-500.0,0.00041095,18]
[342887363,1732194633810,-500.0,0.00041095,18]
[342887364,1732194633820,-735.84,0.00041095,18]
[342887365,1732194633830,-605.67,0.00041095,18]
[342887366,1732194633841,-864.58,0.00041095,18]
[342887367,1732194633850,-369.09338921,0.00041095,18]
[342887368,1732194633867,-500.0,0.00041095,18]
[342887369,1732194633877,-1089.51,0.00041095,18]
[342887370,1732194633887,-1294.62,0.00041095,18]
[342887371,1732194633897,-970.86,0.00041095,18]
[342887372,1732194633908,-500.0,0.00041095,18]
[342887373,1732194633918,-500.0,0.00041095,18]
[342887374,1732194633928,-500.0,0.00041095,18]
[342887375,1732194633939,-500.0,0.00041095,18]
[342887376,1732194633949,-528.56,0.00041095,18]
[342887377,1732194633958,-500.0,0.00041095,18]
[342887378,1732194633969,-193.63583442,0.00041095,18]
[342887379,1732194633978,-782.56,0.00041095,18]
[342887380,1732194633988,-739.73,0.00041095,18]
[342887381,1732194633997,-500.0,0.00041095,18]
[342887382,1732194634007,-652.47,0.00041095,18]
[342887383,1732194634016,-500.0,0.00041095,18]
[342887384,1732194634026,-500.0,0.00041095,18]
[342887385,1732194634035,-500.0,0.00041095,18]
[342887386,1732194634045,-1709.05,0.00041095,18]
[342887387,1732194634055,-500.0,0.00041095,18]
[342887388,1732194634064,-549.94,0.00041095,18]
[342887389,1732194634074,-500.0,0.00041095,18]
[342887390,1732194634084,-500.0,0.00041095,18]
[342887391,1732194634093,-500.0,0.00041095,18]
[342887392,1732194634103,-1793.24,0.00041095,18]
[342887393,1732194634118,-500.0,0.00041095,18]
[342887394,1732194634127,-567.55,0.00041095,18]
[342887395,1732194634138,-500.0,0.00041095,18]
[342887396,1732194634147,-862.91,0.00041095,18]
[342887397,1732194634157,-502.88,0.00041095,18]
[342887398,1732194634166,-1500.58,0.00041095,18]
[342887399,1732194634176,-500.0,0.00041095,18]
[342887400,1732194634185,-500.0,0.00041095,18]
[342887401,1732194634194,-674.04,0.00041095,18]
[342887402,1732194634204,-500.0,0.00041095,18]
[342887403,1732194634213,-3758.09,0.00041095,18]
[342887404,1732194634223,-500.0,0.00041095,18]
[342887405,1732194634232,-500.0,0.00041095,18]
[342887406,1732194634242,-500.0,0.00041095,18]
[342887407,1732194634251,-500.0,0.00041095,18]
[342887408,1732194634261,-500.0,0.00041095,18]
[342887409,1732194634271,-500.0,0.00041095,18]
[342887410,1732194634280,-1720.2,0.00041095,18]
[342887411,1732194634290,-262.62265738,0.00041095,18]
[342887412,1732194634300,-522.97364655,0.00041095,18]
[342887413,1732194634309,-500.0,0.00041095,18]
[342887414,1732194634319,-500.0,0.00041095,18]
[342887415,1732194634329,-683.08,0.00041095,18]
[342887416,1732194634339,-500.0,0.00041095,18]
[342887417,1732194634349,-500.0,0.00041095,18]
[342887418,1732194634361,-1005.12,0.00041095,18]
[342887419,1732194634371,-275.64804881,0.00041095,18]
[342887420,1732194634381,-500.0,0.00041095,18]
[342887421,1732194634391,-500.0,0.00041095,18]
[342887422,1732194634403,-500.0,0.00041095,18]
[342887423,1732194634412,-612.28,0.00041095,18]
[342887424,1732194634426,-500.0,0.00041095,18]
[342887425,1732194634436,-500.0,0.00041095,18]
[342887426,1732194634446,-500.0,0.00041095,18]
[342887427,1732194634457,-500.0,0.00041095,18]
[342887428,1732194634716,-500.0,0.00041095,18]
[342887429,1732194634725,-500.0,0.00041095,18]
[342887430,1732194634734,-500.0,0.00041095,18]
[342887431,1732194634743,-500.0,0.00041095,18]
[342887432,1732194634752,-820.21,0.00041095,18]
[342887433,1732194634761,-589.55,0.00041095,18]
[342887434,1732194634771,-500.0,0.00041095,18]
[342887435,1732194634780,-759.37,0.00041095,18]
[342887436,1732194634789,-500.0,0.00041095,18]
[342887437,1732194634799,-542.43,0.00041095,18]
[342887438,1732194634809,-500.0,0.00041095,18]
[342887439,1732194634818,-500.0,0.00041095,18]
[342887440,1732194634827,-711.21,0.00041095,18]
[342887441,1732194634836,-500.0,0.00041095,18]
[342887442,1732194634845,-597.22,0.00041095,18]
[342887443,1732194634855,-2473.44,0.00041095,18]
[342887444,1732194634866,-500.0,0.00041095,18]
[342887445,1732194634876,-500.0,0.00041095,18]
[342887446,1732194634886,-500.0,0.00041095,18]
[342887447,1732194634896,-727.03,0.00041095,18]
[342887448,1732194634905,-500.0,0.00041095,18]
[342887449,1732194634915,-600.89,0.00041095,18]
[342887450,1732194634924,-2227.68,0.00041095,18]
[342887451,1732194634934,-500.0,0.00041095,18]
[342887452,1732194634943,-245.25537491,0.00041095,18]
[342887453,1732194634952,-500.0,0.00041095,18]
[342887454,1732194634961,-1037.59,0.00041095,18]
[342887455,1732194634971,-658.23,0.00041095,18]
[342887456,1732194634980,-523.14,0.00041095,18]
[342887457,1732194634989,-500.0,0.00041095,18]
[342887458,1732194634998,-500.0,0.00041095,18]
[342887459,1732194635007,-541.47,0.00041095,18]
[342887461,1732194635016,-500.0,0.00041095,18]
[342887463,1732194635026,-676.64,0.00041095,18]
[342887465,1732194635035,-396.56403944,0.00041095,18]
[342887467,1732194635044,-700.0,0.00041095,18]
[342887469,1732194635054,-500.0,0.00041095,18]
[342887470,1732194635064,-500.0,0.00041095,18]
[342887471,1732194635073,-500.0,0.00041095,18]
[342887472,1732194635083,-1704.93,0.00041095,18]
[342887473,1732194635092,-500.0,0.00041095,18]
[342887474,1732194635101,-500.0,0.00041095,18]
[342887475,1732194635113,-3586.05,0.00041095,18]
[342887476,1732194635121,-794.07,0.00041095,18]
[342887477,1732194635131,-1080.61,0.00041095,18]
[342887478,1732194635141,-500.0,0.00041095,18]
[342887479,1732194635150,-500.0,0.00041095,18]
[342887480,1732194635159,-500.0,0.00041095,18]
[342887481,1732194635169,-500.0,0.00041095,18]
[342887482,1732194635178,-500.0,0.00041095,18]
[342887483,1732194635187,-500.0,0.00041095,18]
[342887484,1732194635196,-617.05,0.00041095,18]
[342887485,1732194635205,-500.0,0.00041095,18]
[342887486,1732194635214,-500.0,0.00041095,18]
[342887487,1732194635224,-500.0,0.00041095,18]
[342887488,1732194635233,-500.0,0.00041095,18]
[342887489,1732194635242,-500.0,0.00041095,18]
[342887490,1732194635251,-504.57672519,0.00041095,18]
[342887491,1732194635260,-500.0,0.00041095,18]
[342887492,1732194635270,-500.0,0.00041095,18]
[342887493,1732194635279,-871.76,0.00041095,18]
[342887494,1732194635289,-527.11,0.00041095,18]
[342887495,1732194635298,-500.0,0.00041095,18]
[342887496,1732194635307,-500.0,0.00041095,18]
[342887497,1732194635317,-500.0,0.00041095,18]
[342887498,1732194635326,-500.0,0.00041095,18]
[342887499,1732194635336,-595.66,0.00041095,18]
[342887500,1732194635345,-573.0,0.00041095,18]
[342887501,1732194635355,-500.0,0.00041095,18]
[342887502,1732194635367,-500.0,0.00041095,18]
[342887503,1732194635376,-1250.24,0.00041095,18]
[342887504,1732194635385,-500.0,0.00041095,18]
[342887505,1732194635395,-1286.32,0.00041095,18]
[342887506,1732194635409,-1269.19,0.00041095,18]
[342887507,1732194635418,-500.0,0.00041095,18]
[342887508,1732194635428,-534.53,0.00041095,18]
[342887509,1732194635438,-689.61,0.00041095,18]
[342887510,1732194635449,-574.77,0.00041095,18]
[342887511,1732194635459,-500.0,0.00041095,18]
[342887512,1732194635469,-500.0,0.00041095,18]
[342887513,1732194635478,-978.86,0.00041095,18]
[342887514,1732194635488,-500.0,0.00041095,18]
[342887515,1732194635498,-1384.23,0.00041095,18]
[342887516,1732194635508,-500.0,0.00041095,18]
[342887517,1732194635518,-500.0,0.00041095,18]
[342887518,1732194635527,-500.0,0.00041095,18]
[342887519,1732194635536,-500.0,0.00041095,18]
[342887520,1732194635545,-500.0,0.00041095,18]
[342887521,1732194635555,-1047.57,0.00041095,18]
[342887522,1732194635565,-1876.42,0.00041095,18]
[342887523,1732194635575,-500.0,0.00041095,18]
[342887524,1732194635584,-500.0,0.00041095,18]
[342887525,1732194635594,-500.0,0.00041095,18]
[342887526,1732194635603,-500.0,0.00041095,18]
[342887527,1732194635615,-500.0,0.00041095,18]
[342887528,1732194635625,-724.57,0.00041095,18]
[342887529,1732194635634,-500.0,0.00041095,18]
[342887530,1732194635643,-806.53,0.00041095,18]
[342887531,1732194635653,-575.96314353,0.00041095,18]
[342887532,1732194635663,-796.48,0.00041095,18]
[342887533,1732194635673,-500.0,0.00041095,18]
[342887534,1732194635683,-500.0,0.00041095,18]
[342887535,1732194635693,-500.0,0.00041095,18]
[342887536,1732194635702,-500.0,0.00041095,18]
[342887537,1732194635712,-500.0,0.00041095,18]
[342887538,1732194635722,-385.26659259,0.00041095,18]
[342887539,1732194635732,-500.0,0.00041095,18]
[342887540,1732194635741,-1453.39,0.00041095,18]
[342887541,1732194635751,-760.17,0.00041095,18]
[342887542,1732194635761,-830.01,0.00041095,18]
[342887543,1732194635771,-500.0,0.00041095,18]
[342887544,1732194635780,-500.0,0.00041095,18]
[342887545,1732194635790,-500.0,0.00041095,18]
[342887546,1732194635799,-1772.63,0.00041095,18]
[342887547,1732194635809,-358.97444136,0.00041095,18]
[342887548,1732194635818,-577.34,0.00041095,18]
[342887549,1732194635828,-500.0,0.00041095,18]
[342887550,1732194635837,-914.38,0.00041095,18]
[342887551,1732194635847,-500.0,0.00041095,18]
[342887552,1732194635856,-500.0,0.00041095,18]
[342887553,1732194635874,-722.44,0.00041095,18]
[342887554,1732194635883,-500.0,0.00041095,18]
[342887555,1732194635892,-500.0,0.00041095,18]